Cogmind - Beta 17 @@@ ROGUE MODE // 2026.07.12 @ 01:44:51 Player: naththebg Result: Destroyed by Executioner with Helical Railgun Performance ------------- Evolutions (9) 4500 Regions Visited (16) 3200 Robots Destroyed (431) 2155 Value Destroyed (21586) 21586 Prototype IDs (71) 1420 Alien Tech Used (0) 0 Bonus (34647) 34647 TOTAL SCORE: 67508 Bonus ------- Scavenger 7000 Triggered High Security 1000 High Alert Combat Kills 6677 Follower Combat Kills 1138 Prayed to X0-1V1 5000 Major X0-1V1 Interference 13500 Scanned by Researcher 500 Friendly Fire -168 Cogmind --------- Core Integrity 0/1650 Matter 347/1000 Energy 285/300 System Corruption 34% Temperature Cool (0) Movement Treading (72) Location -1/Command Parts ------- > --- POWER (4) -------- (None) > --- PROPULSION (5) --- Treaded Siege-QT Exoskeleton > --- UTILITY (13) ----- (None) > --- WEAPON (3) ------- (None) > --- INVENTORY (5) ---- Advanced Myomer Leg High-density Centrium Wheel Experimental Matter Compressor (500) Improved Component Analysis Suite Peak State ------------ > --- POWER ------------ Antimatter-Particle Reactor > --- PROPULSION ------- Treaded Siege-QT Exoskeleton > --- UTILITY ---------- Armored Scrap Engine Advanced Heat Sink Advanced Heat Sink Advanced Heat Sink Large Storage Unit Advanced Energy Well Advanced Signal Interpreter Improved Weapon Cycler Advanced Reaction Control System Advanced Shield Generator System Mapper X0-1V1's Piety Tracker > --- WEAPON ----------- Multinova Projection Cannon Hpw. Ballistic Hardcell Construct/C > --- INVENTORY -------- Advanced Myomer Leg Advanced Heat Sink Experimental Matter Compressor Advanced Sensor Array Precision Energy Filter Kinecellerator Improved Cloaking Device Thermal Barrier Advanced Shield Generator Advanced Shield Generator Force Field Advanced Point Defense System Improved Component Analysis Suite Micro-nuke Launcher Advanced Micro-nuke Launcher [Rating: 216] Favorites ----------- Power Constructs Engine Ion Engine Power Core Light Nuclear Core Reactor Constructs Propulsion Constructs Treads Constructs Leg Aluminum Leg Wheel Subdweller Monowheel Utility Advanced Heat Sink Device Advanced Heat Sink Storage Large Storage Unit Processor Makeshift Targeting Computer Hackware System Mapper Protection Hardened Medium Armor Plating Weapon Constructs Energy Gun Medium Laser Energy Cannon Heavy Ion Cannon Ballistic Gun Assault Rifle Ballistic Cannon Constructs Launcher Proton Missile Launcher Build | -11 -10 -10 -10 -8 -7 -7 -7 -5 -4 -4 -4 -3 -3 -2 -1 -1 ------- Run | Yrd Mat Min Sub Mat Fac Sto Rec Fac Fac Arm Lab Res Tes Res Acc Com Slots Evolved 18 | . . . . 4 2 . . 4 2 . . 2 . 2 2 . Power 2 | . . . . . . . . 1 . . . . . . 1 . Propulsion 3 | . . . . 1 1 . . . 1 . . . . . . . Utility 12 | . . . . 3 1 . . 2 1 . . 2 . 2 1 . Weapon 1 | . . . . . . . . 1 . . . . . . . . Parts Attached 166 | 6 10 5 8 25 14 9 4 10 9 8 . 23 7 8 13 7 Power 14 | 1 3 2 1 2 1 4 . . . . . . . . . . Engine 13 | 1 3 2 1 1 1 4 . . . . . . . . . . Core 1 | . . . . 1 . . . . . . . . . . . . Reactor . | . . . . . . . . . . . . . . . . . Propulsion 21 | 2 2 1 1 5 8 1 . . . . . . . . . 1 Treads 10 | . 1 1 . 4 3 . . . . . . . . . . 1 Leg 8 | 2 1 . . . 4 1 . . . . . . . . . . Wheel 3 | . . . 1 1 1 . . . . . . . . . . . Hover . | . . . . . . . . . . . . . . . . . Flight . | . . . . . . . . . . . . . . . . . Utility 110 | 1 4 1 1 13 4 3 3 10 9 8 . 23 5 8 11 6 Device 89 | . 3 1 1 11 4 2 3 9 7 6 . 17 4 5 10 6 Storage 9 | 1 1 . . 1 . . . . 1 . . 4 . 1 . . Processor 6 | . . . . . . . . 1 . . . 2 1 1 1 . Hackware 2 | . . . . . . . . . . 1 . . . 1 . . Protection 4 | . . . . 1 . 1 . . 1 1 . . . . . . Artifact . | . . . . . . . . . . . . . . . . . Weapon 21 | 2 1 1 5 5 1 1 1 . . . . . 2 . 2 . Energy Gun 5 | 1 1 1 1 . . . . . . . . . 1 . . . Energy Cannon 8 | . . . 1 5 . 1 . . . . . . 1 . . . Ballistic Gun 3 | 1 . . 2 . . . . . . . . . . . . . Ballistic Cannon 2 | . . . 1 . . . 1 . . . . . . . . . Launcher 3 | . . . . . 1 . . . . . . . . . 2 . Special Weapon . | . . . . . . . . . . . . . . . . . Impact Weapon . | . . . . . . . . . . . . . . . . . Slashing Weapon . | . . . . . . . . . . . . . . . . . Piercing Weapon . | . . . . . . . . . . . . . . . . . Special Melee Weapon . | . . . . . . . . . . . . . . . . . Unidentified Prototypes 26 | . 1 . . . . 4 1 1 1 5 . 8 1 3 1 . Parts Lost 85 | . 1 2 5 11 1 1 . 4 4 5 . 5 4 2 13 27 Power 8 | . 1 . 1 1 1 . . 1 . . . . . . . 3 Propulsion 8 | . . . 1 3 . . . . . . . . . . . 4 Utility 54 | . . 1 1 5 . 1 . 3 4 4 . 4 3 2 9 17 Weapon 15 | . . 1 2 2 . . . . . 1 . 1 1 . 4 3 Highest Loss Streak 16 | . 1 1 2 3 1 1 . 3 1 2 . 2 3 1 4 16 To Critical Strikes 3 | . . . . . . . . 1 . . . . . . 1 1 Average Backups 12 | 4 9 9 9 12 14 14 10 13 14 13 13 13 12 11 13 8 Power 1 | . 1 1 1 2 2 2 3 4 . . . . . . . . Propulsion 1 | 2 4 3 2 . 1 1 . . 1 2 4 2 1 1 1 2 Utility 5 | . 2 2 3 1 3 2 2 3 9 6 7 9 9 8 11 6 Weapon 3 | 1 2 1 2 6 6 8 4 5 2 3 2 2 1 2 1 . Tool/Special . | . . . . . . . . . . . . . . . . . Unused Backups 48 | . 3 . 1 2 3 7 4 3 6 6 1 4 . 1 1 6 Power 10 | . . . . . . 1 . 3 3 1 . . . 1 1 . Propulsion 14 | . 2 . 1 . . 1 1 . . 2 . 3 . . . 4 Utility 6 | . . . . . . . . . 2 1 . 1 . . . 2 Weapon 18 | . 1 . . 2 3 5 3 . 1 2 1 . . . . . Tool/Special . | . . . . . . . . . . . . . . . . . Average Slot Usage (%) 73 | . 94 99 88 92 90 92 79 65 56 54 57 59 57 64 64 44 Engine 3 | . 13 14 8 5 1 7 1 1 . . . . . . . . Reactor 3 | . . . . . . . 2 9 3 5 5 4 4 4 4 2 Treads 5 | . 2 14 22 16 14 . . . 3 2 . . 4 4 . 1 Leg 4 | . 22 . . 2 5 23 14 . . 2 5 3 . . 2 . Wheel 1 | . . . 1 4 3 . . 2 . . . . . . . . Device 26 | . 12 13 13 26 28 29 22 23 23 27 31 34 34 38 32 25 Storage 7 | . 14 14 14 9 7 7 7 5 5 5 5 5 4 4 8 4 Processor 1 | . . . . . . . 2 3 4 . . . 1 . 3 1 Energy Gun 5 | . 14 40 14 . . . 3 2 1 2 . 1 . . . . Energy Cannon 6 | . . . 3 17 22 23 7 6 5 3 . 1 8 5 6 1 Ballistic Gun 1 | . 14 . 5 . . . . . . . . . . . . . Ballistic Cannon 2 | . . . 5 . . . 3 2 3 4 10 5 . 2 . 4 Peak Build Rating 216 | 6 21 21 25 40 64 70 89 107 150 159 158 175 179 189 216 199 Average Rating 106 | 4 12 20 20 37 51 65 73 99 130 148 158 165 172 183 205 146 On Entrance 93 | . 6 20 21 25 40 64 70 82 89 150 158 159 165 178 184 179 Avg Prop Armor Cover (%) 20 | . . . 14 13 13 . . . . . . . . . . 39 Naked Turns . | . . . . . . . . . . . . . . . . . Heaviest Build 165 | 14 21 23 22 54 54 57 67 94 86 125 125 135 114 115 165 132 Greatest Support 272 | 20 20 40 40 60 80 80 76 79 151 233 233 233 179 179 272 272 Greatest Overweight (x) 2 | 1 1 1 1 2 2 . 2 2 . . . . . . . . Average Overweight (x) . | . . . . . . . . . . . . . . . . . Largest Inventory Capacity 15 | 8 10 10 10 15 15 15 15 15 15 15 15 15 15 15 15 15 Average Capacity 13 | 6 9 10 10 12 15 15 15 15 15 15 15 15 15 15 15 11 Most Carried 15 | 6 10 10 10 15 15 15 15 15 15 15 15 15 15 14 15 15 Average Carried 12 | 4 9 9 9 12 14 14 10 13 14 14 14 14 12 11 13 9 Final Capacity 15 | 8 10 10 10 15 15 15 15 15 15 15 15 15 15 15 15 5 Final Carried 15 | 6 10 10 10 14 15 15 14 15 13 15 14 15 14 14 12 4 Scrap Engine Consumption 207 | . . . . . . . 12 19 27 58 1 30 7 27 22 4 Constructs Created 14 | . . . . . . . 6 2 1 3 . . . . 1 1 Constructs Modified 171 | . . . . . . . 16 16 22 24 2 14 2 11 49 15 Transmogrified Parts 21 | . . . . . . 5 16 . . . . . . . . . Integrity Recovered 231 | . . . . . . 134 97 . . . . . . . . . Class Distribution -------------------- 29% | Scavenger-Construct 24% | Construct 14% | Gunner 13% | Mutant 10% | Scavenger-Mutant 3% | Scavenger-Gunner Dominant Class ---------------- Mutant | -10/Materials Gunner | -10/Mines Mutant | -10/Subcaves Scavenger-Mutant | -8/Materials Scavenger-Gunner | -7/Factory Gunner | -7/Storage Gunner | -7/Recycling Construct | -5/Factory Construct | -4/Factory Construct | -4/Armory Scavenger-Construct | -4/Lab Scavenger-Construct | -3/Research Scavenger-Construct | -3/Testing Scavenger-Construct | -2/Research Scavenger-Construct | -1/Access Scavenger-Construct | -1/Command Resources | -11 -10 -10 -10 -8 -7 -7 -7 -5 -4 -4 -4 -3 -3 -2 -1 -1 ----------- Run | Yrd Mat Min Sub Mat Fac Sto Rec Fac Fac Arm Lab Res Tes Res Acc Com Matter Collected 9646 | 206 236 142 153 457 179 130 765 735 1345 1806 . 1736 191 218 1039 308 Remotely . | . . . . . . . . . . . . . . . . . Salvage Created 22787 | . 606 338 167 2060 455 587 320 1931 2884 2698 . 2594 1305 1822 4437 583 Parts 1051 | . 24 24 10 76 17 33 15 80 120 131 . 102 53 84 261 21 Haulers Intercepted 23 | . 2 . . 3 2 2 . 1 1 . . 2 . 4 6 . Recyclers Shooed 5 | . . . . . . 2 . . 1 . . . 2 . . . Parts Field Recycled . | . . . . . . . . . . . . . . . . . Retrieved Matter . | . . . . . . . . . . . . . . . . . Parts Self-Destructed . | . . . . . . . . . . . . . . . . . Prevented . | . . . . . . . . . . . . . . . . . Parts Restored . | . . . . . . . . . . . . . . . . . Kills | -11 -10 -10 -10 -8 -7 -7 -7 -5 -4 -4 -4 -3 -3 -2 -1 -1 ------- Run | Yrd Mat Min Sub Mat Fac Sto Rec Fac Fac Arm Lab Res Tes Res Acc Com Combat Hostiles Destroyed 335 | . 7 14 5 32 10 6 7 28 34 43 . 42 15 18 66 8 Guns 31 | . 7 14 2 . . . 2 6 . . . . . . . . Cannons 265 | . . . 3 28 2 5 5 20 31 43 . 40 13 17 50 8 AOE 26 | . . . . . 8 . . . 3 . . 2 . . 13 . Classes Destroyed 24 | . 6 . 1 5 . 2 . 1 . 3 . 3 1 . 2 . Worker 12 | . . . . 1 . . . 1 . . . 1 . . 5 4 Builder 11 | . . . . . . 1 . . . . . . 1 1 8 . Tunneler 1 | . . . . . . . . . . . . . . . 1 . Hauler 23 | . 2 . . 3 2 2 . 1 1 . . 2 . 4 6 . Recycler 19 | . 3 . . 1 2 1 . 3 4 . . 2 2 . 1 . Mechanic 1 | . . . . . . . . . . . . 1 . . . . Operator 7 | . 1 . . 3 . . . . . . . 1 . 1 1 . Watcher 21 | . 1 . . 4 . 1 . 4 2 . . 1 . 2 5 1 Swarmer 77 | . 3 9 . . 8 . . 9 5 4 . . . 5 34 . Saboteur 2 | . . . . . . . . . . 2 . . . . . . Grunt 81 | . 4 5 . 22 2 1 . 4 3 16 . 15 5 . . 4 Brawler 2 | . . . . 1 . . . . . . . 1 . . . . Duelist 1 | . . . . 1 . . . . . . . . . . . . Protector 1 | . . . . . . . . . . 1 . . . . . . Researcher 1 | . . . . . . . . . . . . . 1 . . . Sentry 41 | . . . . 7 . 3 2 3 7 6 . 3 3 3 4 . Specialist 4 | . . . . . . . . 3 . . . 1 . . . . Hunter 52 | . . . . 1 . 1 2 3 11 5 . 6 4 3 14 2 Programmer 55 | . . . . . . 1 . 6 8 7 . 10 3 7 11 2 Heavy 5 | . . . . . . . . . . 2 . 2 . . 1 . Q-Series 2 | . . . . . . . . . . . . . . . 2 . Behemoth 1 | . . . . . . . . . . . . 1 . . . . Subdweller 8 | . . . 5 . . . 3 . . . . . . . . . Thug 2 | . . . . . . . . . . . . 2 . . . . Fireman 1 | . . . . . . . . . . . . 1 . . . . Best Kill Streak 26 | . 4 5 2 6 7 3 2 7 9 7 . 4 12 5 26 10 Combat Bots Only 12 | . 3 5 2 4 4 1 2 7 8 7 . 4 5 5 12 6 Max Kills in Single Turn 8 | . 1 2 1 1 4 2 1 2 3 1 . 1 2 2 8 1 Gunslinging 1 | . . 1 . . . . . . . . . . . . . . Exploded 8 | . . . . . 4 . . . 3 . . 1 . . 8 . Melee . | . . . . . . . . . . . . . . . . . Uniques/NPCs Destroyed . | . . . . . . . . . . . . . . . . . Combat | -11 -10 -10 -10 -8 -7 -7 -7 -5 -4 -4 -4 -3 -3 -2 -1 -1 -------- Run | Yrd Mat Min Sub Mat Fac Sto Rec Fac Fac Arm Lab Res Tes Res Acc Com Hostile Shots Fired 2410 | . 34 57 30 167 23 46 23 234 198 221 . 264 112 60 391 550 Missed 766 | . 8 18 8 51 8 12 10 67 59 79 . 89 18 29 130 180 Intercepted 3 | . . . . . . . . . . . . . . . 2 1 Deflected 2 | . . . . . . . . . . . . . . . 2 . Hits 1644 | . 26 39 22 116 15 34 13 167 139 142 . 175 94 31 261 370 Projectile 1644 | . 26 39 22 116 15 34 13 167 139 142 . 175 94 31 261 370 AOE 12 | . . . . . . . . . . . . 1 . . 5 6 Critical Strikes 72 | . 1 . 1 7 . . . 7 3 6 . 7 4 1 7 28 Actively Blocked 1 | . . . . . . . . . . . . 1 . . . . Damage Taken 29034 | . 344 344 444 1787 229 329 157 2359 2080 2511 . 2942 1750 864 4984 7910 Core 3237 | . 69 76 60 241 30 48 12 429 123 140 . 197 148 . 359 1305 Absorbed by Shields 4680 | . . . . 31 . . . 708 557 471 . 585 . 133 1738 457 Reduced by Siege Mode 361 | . . . . . . . . . 77 . . 97 163 24 . . Ignored by Resistances 2511 | . . . . . . . . 72 . . . 580 . . 239 1620 Regen/Repaired (Parts) 12172 | . . . . 173 . . 69 308 1456 2370 72 1584 392 1542 3409 797 Core Remaining (%) 78 | 100 . . 70 59 . . 88 59 . . 78 . 74 100 . . Volleys Fired 1093 | . 44 31 23 122 21 21 18 113 99 135 . 167 52 53 142 52 Largest 3 | . 2 3 2 2 3 3 3 3 2 1 . 2 2 2 2 2 Hottest 294 | . 85 165 93 130 198 198 166 272 215 150 . 246 294 294 289 233 Shots Fired 1594 | . 86 83 41 243 51 58 38 149 100 134 . 169 71 95 210 66 Gun 229 | . 86 83 22 2 . . 6 28 1 1 . . . . . . Cannon 1345 | . . . 19 241 48 58 31 121 98 133 . 169 71 95 195 66 Launcher 20 | . . . . . 3 . 1 . 1 . . . . . 15 . Special . | . . . . . . . . . . . . . . . . . Kinetic 367 | . 44 3 29 1 . . 12 21 35 29 . 61 . 11 55 66 Thermal 1190 | . 42 80 8 242 48 58 25 116 64 105 . 108 71 84 139 . Explosive 19 | . . . . . 3 . . . 1 . . . . . 15 . Electromagnetic 18 | . . . 4 . . . 1 12 . . . . . . 1 . Robot Hit Streak 27 | . 7 6 16 19 5 7 8 27 16 15 . 10 14 19 22 8 Robot Miss Streak 6 | . 4 6 2 3 1 3 2 5 2 4 . 4 4 3 4 3 Penetration Max 1 | . . . . . . . . 1 1 . . . . . 1 . Secondary Targets 5 | . 2 3 . . . . . . . . . . . . . . Max Gunslinging Chain 2 | . 1 2 . . . . . . . . . . . . . . Shots Hit Robots 1006 | . 57 41 27 168 20 28 21 101 80 84 . 111 52 60 114 42 Core Hits 526 | . 24 19 8 54 20 14 11 67 40 34 . 47 30 31 113 14 Critical Kills 14 | . . . . 2 . 2 . . . . . 5 1 2 1 1 Critical Parts Destroyed 11 | . . . . . . . . 1 . 4 . 4 . . 2 . Critical Strikes 39 | . . 2 . 2 . 2 . 1 . 4 . 10 1 3 3 11 Burn 2 | . . 2 . . . . . . . . . . . . . . Meltdown 8 | . . . . 2 . 2 . . . . . . 1 2 1 . Destroy 18 | . . . . . . . . 1 . 4 . 10 . . 2 1 Blast 11 | . . . . . . . . . . . . . . 1 . 10 Melee Attacks . | . . . . . . . . . . . . . . . . . Impact . | . . . . . . . . . . . . . . . . . Slashing . | . . . . . . . . . . . . . . . . . Piercing . | . . . . . . . . . . . . . . . . . Sneak Attacks . | . . . . . . . . . . . . . . . . . Combat Hostiles . | . . . . . . . . . . . . . . . . . Follow-up Attacks . | . . . . . . . . . . . . . . . . . Damage Inflicted 73731 | . 800 590 543 4663 1036 767 470 6204 8729 10043 . 12980 4244 4901 13857 3904 Guns 2347 | . 791 588 237 . . . 97 634 . . . . . . . . Cannons 66061 | . . . 306 4631 476 755 373 5517 8428 10021 . 12755 4244 4876 9794 3885 Explosions 4962 | . . . . . 546 . . 5 230 . . 211 . 23 3947 . Melee . | . . . . . . . . . . . . . . . . . Ramming 361 | . 9 2 . 32 14 12 . 48 71 22 . 14 . 2 116 19 Kinetic 18778 | . 372 10 365 . . . 59 421 2758 2003 . 6390 . 464 2051 3885 Thermal 49027 | . 419 578 102 4631 476 755 411 5203 5670 8018 . 6365 4244 4412 7743 . Explosive 4907 | . . . . . 546 . . . 230 . . 161 . 23 3947 . Electromagnetic 658 | . . . 76 . . . . 532 . . . 50 . . . . Impact . | . . . . . . . . . . . . . . . . . Slashing . | . . . . . . . . . . . . . . . . . Piercing . | . . . . . . . . . . . . . . . . . Highest Corruption 34 | . 1 1 1 11 . 12 12 5 6 10 10 7 10 1 7 34 Average Corruption 5 | . 1 1 1 11 . 11 12 2 3 7 10 3 8 1 4 17 Corruption Purged . | . . . . . . . . . . . . . . . . . Corruption Blocked . | . . . . . . . . . . . . . . . . . Effects 230 | . 2 9 5 13 . 18 12 11 12 54 4 14 23 4 28 21 Message Errors 38 | . . 2 . 2 . 4 2 1 . 10 . 5 3 1 4 4 Matter Fused 69 | . 2 3 1 2 . 4 3 2 2 18 2 5 10 1 10 4 Heat Flow Errors 25 | . . 1 1 3 . 2 2 2 1 7 . . . 1 3 2 Energy Discharges 27 | . . . 1 2 . 2 . 2 4 7 . 2 1 . 6 . Parts Rejected 3 | . . . . . . . . . 1 2 . . . . . . Parts Fused 3 | . . . . . . 1 . . 1 . . . 1 . . . Data Loss (minor) 20 | . . 1 2 1 . 3 1 1 2 3 . 1 1 1 2 1 Data Loss (major) 14 | . . . . 1 . . 1 1 1 4 2 1 1 . 1 1 Misfires 8 | . . 2 . 1 . . 1 . . . . . 3 . 1 . Alerts 7 | . . . . . . 1 1 1 . 2 . . 2 . . . Misdirections 8 | . . . . . . . . . . . . . . . . 8 Weapon Failures 8 | . . . . 1 . 1 1 1 . 1 . . 1 . 1 1 Overload Shots 2 | . . . . . . 2 . . . . . . . . . . Effects 1 | . . . . . . 1 . . . . . . . . . . Energy Bleed 1 | . . . . . . 1 . . . . . . . . . . Overflow Damage 6542 | . . . . 111 4 23 . 689 1245 1502 . 1408 181 289 730 360 Projectiles 6435 | . . . . 111 4 23 . 689 1239 1502 . 1408 181 289 629 360 Explosions 89 | . . . . . . . . . . . . . . . 89 . Melee 18 | . . . . . . . . . 6 . . . . . 12 . Knockbacks 77 | . . . 4 . . . 1 5 7 5 . 17 . 3 2 33 Impact 2 | . . . . . . . . . . 1 . . . . . 1 Kinetic 63 | . . . 4 . . . 1 5 7 4 . 14 . 2 2 24 Secondary 12 | . . . . . . . . . . . . 3 . 1 . 8 Self-Inflicted Damage 254 | . . . . . . . 2 23 5 . . 41 . . 183 . Shots 7 | . . . . . . . 1 . 1 . . 1 . . 4 . Rammed 19 | . . 1 . 4 1 . . 3 2 . . . . 1 1 6 Targets Rammed 34 | . 1 1 . 5 1 3 . 3 2 1 . 2 . 1 8 6 Kicked 14 | . 1 . . . . 3 . . . 1 . 2 . . 7 . Crushed 1 | . . . . 1 . . . . . . . . . . . . Highest Temperature 510 | . 24 373 256 372 75 235 301 403 220 327 . 346 334 240 510 478 Average Temperature 103 | . 7 147 98 85 17 46 92 122 77 80 . 129 101 53 100 165 Received Heat Transfer 3593 | . 201 48 84 1038 45 60 12 279 155 299 . 587 102 12 102 569 Effects 25 | . . 3 . 1 . . 2 2 . 4 . 3 1 . . 9 Shutdowns 2 | . . 1 . . . . . . . . . . . . . 1 Energy Bleed 4 | . . 2 . 1 . . . . . 1 . . . . . . Interference 11 | . . . . . . . 1 . . 2 . 2 1 . . 5 Matter Decay 2 | . . . . . . . . 1 . . . 1 . . . . Short Circuit 2 | . . . . . . . 1 1 . . . . . . . . Damage (minor) 1 | . . . . . . . . . . 1 . . . . . . Damage (major) 3 | . . . . . . . . . . . . . . . . 3 Siege Activations 10 | . . . . . . . . . 2 . . 3 4 1 . . Total Turns 259 | . . . . . . . . . 36 . . 67 134 22 . . Longest Duration 75 | . . . . . . . . . 32 . . 51 75 22 . . Martial Activations . | . . . . . . . . . . . . . . . . . Shielding Activations 6 | . . . . . . . . . . . . . . . 6 . Total Turns 47 | . . . . . . . . . . . . . . . 47 . Longest Duration 13 | . . . . . . . . . . . . . . . 13 . Robots Disrupted . | . . . . . . . . . . . . . . . . . Combat Hostiles . | . . . . . . . . . . . . . . . . . Robots Corrupted 3 | . . . . . . . . . . . . . . . . 3 Combat Hostiles . | . . . . . . . . . . . . . . . . . Parts Fried 9 | . . . . . . . . 2 . . . 1 . . 3 3 Impact Corruptions 9 | . . . . . . . . . 1 . . 1 . 1 1 5 Robots Melted 18 | . . . . 7 . 2 . 2 . . . . 2 3 2 . Combat Hostiles 13 | . . . . 4 . 1 . 2 . . . . 2 2 2 . Parts Melted 63 | . . 4 . 14 2 3 2 2 1 3 . 2 10 9 11 . Heat Transferred 34202 | . 1036 1702 125 6327 666 1073 777 3488 1924 2442 . 2770 3219 3186 5467 . Parts Sabotaged . | . . . . . . . . . . . . . . . . . Parts Stolen . | . . . . . . . . . . . . . . . . . Parts Stripped . | . . . . . . . . . . . . . . . . . Power Chain Reactions . | . . . . . . . . . . . . . . . . . Alert | -11 -10 -10 -10 -8 -7 -7 -7 -5 -4 -4 -4 -3 -3 -2 -1 -1 ------- Run | Yrd Mat Min Sub Mat Fac Sto Rec Fac Fac Arm Lab Res Tes Res Acc Com Maximum Alert Level 5 | . . . . 1 1 . . 3 2 3 . 4 3 2 5 5 Low Security (%) 45 | 100 100 100 . 70 95 100 100 29 12 . . 32 . . . . Level 1 14 | . . . . 29 4 . . 40 63 13 . 6 . . 10 . Level 2 20 | . . . . . . . . 29 23 71 . 4 . 100 32 . Level 3 9 | . . . . . . . . . . 14 . 26 100 . 19 . Level 4 4 | . . . . . . . . . . . . 29 . . 14 . Level 5 . | . . . . . . . . . . . . . . . . 29 High Security 4 | . . . . . . . . . . . . . . . 22 70 Max Security . | . . . . . . . . . . . . . . . . . Peak Influence 3296 | . 97 152 . 312 215 148 64 764 681 1083 . 1499 1072 692 3296 3124 Initial 2108 | . . . . . 100 83 49 300 381 331 . . 843 473 381 2108 Average 457 | . 23 40 . 156 91 109 7 293 369 564 . 662 933 536 1141 2531 Influence Increases 14958 | . 261 362 . 1127 362 308 180 1493 988 1470 . 2069 483 767 3547 1541 Destroy 0b10 Robot/C 7000 | . 140 280 . 640 200 120 80 580 680 840 . 1120 320 360 1320 320 Destroy 0b10 Robot/NC 500 | . 35 5 . 60 20 25 . 45 35 5 . 45 15 45 135 30 Destroy Leader 1392 | . 36 32 . 164 24 56 . 140 146 180 . 216 30 104 202 62 Allied During Kill 454 | . . . . . . . 4 6 7 29 . 275 . . . 133 Successful Hack 231 | . 35 . . 8 36 2 36 22 . 14 . 33 . 3 42 . Disable Machine 750 | . 15 . . 30 60 90 45 30 45 120 . 75 30 45 150 15 Destroy Structure 1896 | . . . . 66 22 15 15 70 60 94 . 92 88 195 1098 81 Advance Influence 300 | . . . . . . . . 300 . . . . . . . . Partial Spotted 60 | . . 15 . . . . . . . . . . . . 30 15 Lose Combat Pursuer 1905 | . . 30 . 45 . . . 300 15 30 . 15 . 15 570 885 Miscellaneous 470 | . . . . 114 . . . . . 158 . 198 . . . . Influence Decreases 11929 | . 261 362 . 904 402 364 307 714 1090 1088 1059 570 1140 973 887 1808 Entered New Map 4572 | . . . . . 123 100 78 . 398 346 1059 . 656 369 255 1188 Time Decay 5217 | . 261 352 . 544 269 254 229 514 482 542 . 470 294 434 502 70 Search Patrol Dispatched 200 | . . . . 100 . . . 100 . . . . . . . . Lost Part 780 | . . 10 . 110 10 10 . 40 40 50 . 50 40 20 130 270 Lost Ally 410 | . . . . . . . . 60 20 . . 50 . . . 280 Purge Threat 750 | . . . . 150 . . . . 150 150 . . 150 150 . . Squads Dispatched 109 | . . 1 . 5 2 2 . 15 6 9 . 14 4 7 30 14 Investigation 10 | . . 1 . . . 1 . 2 1 2 . 1 . 1 1 . Extermination 25 | . . . . . 1 1 . 3 4 3 . 4 2 3 4 . Reinforcement 33 | . . . . 5 1 . . 6 1 3 . 7 2 3 5 . Assault 32 | . . . . . . . . . . 1 . 2 . . 15 14 Garrison 9 | . . . . . . . . 4 . . . . . . 5 . Intercept . | . . . . . . . . . . . . . . . . . Searches Triggered 2 | . . . . 1 . . . 1 . . . . . . . . Construction Impeded 3 | . . . . . . . . 1 . . . . . 1 1 . Haulers Reinforced 5 | . . . . . . . . 1 1 . . 2 . . 1 . Active Scanning Responses . | . . . . . . . . . . . . . . . . . Cargo Convoy Interrupts 1 | . . . . . . . . 1 . . . . . . . . Stealth | -11 -10 -10 -10 -8 -7 -7 -7 -5 -4 -4 -4 -3 -3 -2 -1 -1 --------- Run | Yrd Mat Min Sub Mat Fac Sto Rec Fac Fac Arm Lab Res Tes Res Acc Com Distress Signals 22 | . . 1 . 4 . . . 1 1 3 . 1 1 1 3 6 Communications Jammed . | . . . . . . . . . . . . . . . . . Distress Signals . | . . . . . . . . . . . . . . . . . Times Spotted 628 | . 16 16 5 46 12 6 7 61 41 53 . 60 20 25 109 151 Peak Tracking Total 81 | . 3 4 2 6 5 1 2 7 7 5 . 7 7 6 25 81 Tactical Retreats 29 | . . 2 . 3 . . . 5 1 1 . 1 . 1 9 6 Traps | -11 -10 -10 -10 -8 -7 -7 -7 -5 -4 -4 -4 -3 -3 -2 -1 -1 ------- Run | Yrd Mat Min Sub Mat Fac Sto Rec Fac Fac Arm Lab Res Tes Res Acc Com Traps Triggered 14 | . 1 . . . . . . 1 1 3 . 3 1 . 4 . Indirectly 1 | . . . . . . . . . . . . 1 . . . . Trap Hack Attempts . | . . . . . . . . . . . . . . . . . Triggered . | . . . . . . . . . . . . . . . . . Disarmed . | . . . . . . . . . . . . . . . . . Reprogrammed . | . . . . . . . . . . . . . . . . . Reused . | . . . . . . . . . . . . . . . . . Traps Extracted . | . . . . . . . . . . . . . . . . . Installed . | . . . . . . . . . . . . . . . . . Triggered . | . . . . . . . . . . . . . . . . . Machines | -11 -10 -10 -10 -8 -7 -7 -7 -5 -4 -4 -4 -3 -3 -2 -1 -1 ---------- Run | Yrd Mat Min Sub Mat Fac Sto Rec Fac Fac Arm Lab Res Tes Res Acc Com Machines Disabled 51 | . 1 . 1 2 4 6 3 2 3 8 . 5 2 3 10 1 Max in Single Turn 2 | . 1 . 1 1 1 1 2 1 1 1 . 2 1 1 1 1 Energy Cycler 1 | . . . . . . . . . . 1 . . . . . . Machines Repaired . | . . . . . . . . . . . . . . . . . Machines Dismantled . | . . . . . . . . . . . . . . . . . Machines Sabotaged . | . . . . . . . . . . . . . . . . . Overloaded Fab Kills . | . . . . . . . . . . . . . . . . . Hacking | -11 -10 -10 -10 -8 -7 -7 -7 -5 -4 -4 -4 -3 -3 -2 -1 -1 --------- Run | Yrd Mat Min Sub Mat Fac Sto Rec Fac Fac Arm Lab Res Tes Res Acc Com Machines Accessed 72 | . 9 . 1 7 5 3 7 6 5 3 . 5 6 6 8 1 Terminals 43 | . 8 . . 5 1 3 3 4 2 2 . 3 3 2 6 1 Fabricators 3 | . . . . . 2 . . . . . . . . . 1 . Repair Stations 4 | . . . . 1 1 . . . 1 . . . 1 . . . Recycling Units 11 | . 1 . . 1 . . 3 1 2 1 . 1 . 1 . . Scanalyzers 6 | . . . . . 1 . . . . . . 1 2 2 . . Garrison Access 3 | . . . . . . . . 1 . . . . . 1 1 . Total Hacks 168 | . 24 . 1 26 10 9 19 14 9 11 . 10 12 10 12 1 Successful 64 | . 12 . 1 13 6 1 7 3 4 3 . 5 2 4 3 . Failed 103 | . 11 . . 13 4 8 12 11 5 8 . 5 10 6 9 1 Catastrophic 23 | . 2 . . 1 3 2 5 . 1 2 . 1 1 . 5 . Database Lockouts 1 | . 1 . . . . . . . . . . . . . . . Manual 64 | . 13 . . 11 1 . 11 5 4 6 1 3 . 2 7 . Terminals 116 | . 21 . . 22 3 9 7 10 6 9 . 6 9 3 10 1 Fabricators 4 | . . . . . 3 . . . . . . . . . 1 . Repair Stations 6 | . . . . 2 2 . . . 1 . . . 1 . . . Recycling Units 23 | . 3 . . 2 . . 10 1 2 2 . 2 . 1 . . Scanalyzers 10 | . . . . . 2 . . . . . . 2 2 4 . . Garrison Access 6 | . . . . . . . . 3 . . . . . 2 1 . Terminal Hacks 38 | . 9 . 1 7 2 1 4 3 2 2 . 2 2 1 2 . Robot Schematic 1 | . . . . . . . . 1 . . . . . . . . Robot Analysis 1 | . . . . 1 . . . . . . . . . . . . Prototype ID Bank 9 | . 6 . . . . . 2 . . . . 1 . . . . Open Door 2 | . . . . . . 1 . . . . . . . . 1 . Branch Access Points 2 | . . . . 1 1 . . . . . . . . . . . Alert Level 9 | . 1 . . 3 . . . 1 1 . . 1 1 . 1 . Unreport Threat 5 | . . . . 1 . . . . 1 1 . . 1 1 . . Locate Traps 2 | . 1 . . . 1 . . . . . . . . . . . Zone Layout 4 | . 1 . . 1 . . . 1 . 1 . . . . . . Proto ID Catalog 1 | . . . 1 . . . . . . . . . . . . . Release Object 2 | . . . . . . . 2 . . . . . . . . . Fabricator Hacks 2 | . . . . . 1 . . . . . . . . . 1 . Network Status 1 | . . . . . 1 . . . . . . . . . . . Build 1 | . . . . . . . . . . . . . . . 1 . Repair Station Hacks 3 | . . . . 2 1 . . . . . . . . . . . Scan Component 2 | . . . . 1 1 . . . . . . . . . . . Repair 1 | . . . . 1 . . . . . . . . . . . . Recycling Unit Hacks 6 | . 1 . . 1 . . 1 . 1 . . 1 . 1 . . Retrieve Matter 1 | . . . . . . . 1 . . . . . . . . . Retrieve Components 5 | . 1 . . 1 . . . . 1 . . 1 . 1 . . Scanalyzer 2 | . . . . . 1 . . . . . . . . 1 . . Retrieve Study 2 | . . . . . 1 . . . . . . . . 1 . . Garrison Access Hacks . | . . . . . . . . . . . . . . . . . Unauthorized Hacks 13 | . 2 . . 3 1 . 2 . 1 1 . 2 . 1 . . Terminals 8 | . 2 . . 3 . . . . . 1 . 2 . . . . Botnet 8 | . 2 . . 3 . . . . . 1 . 2 . . . . Fabricators 1 | . . . . . 1 . . . . . . . . . . . Report 1 | . . . . . 1 . . . . . . . . . . . Repair Stations 1 | . . . . . . . . . 1 . . . . . . . Patch 1 | . . . . . . . . . 1 . . . . . . . Recycling Units 2 | . . . . . . . 2 . . . . . . . . . Mask 2 | . . . . . . . 2 . . . . . . . . . Scanalyzers 1 | . . . . . . . . . . . . . . 1 . . Researchers 1 | . . . . . . . . . . . . . . 1 . . Garrison Access . | . . . . . . . . . . . . . . . . . Data Cores Recovered 3 | . 1 . . . . . . . . . . . . 1 1 . Used 2 | . 1 . . . . . . . . . . . . . 1 . Hacking Detections 62 | . 7 . . 6 5 2 6 6 3 3 . 5 6 4 8 1 Full Trace Events 11 | . . . . 1 . 1 6 1 . . . . . 1 1 . Feedback Events . | . . . . . . . . . . . . . . . . . Feedback Blocked . | . . . . . . . . . . . . . . . . . Robot Schematics Acquired 2 | . . . . . . . . 1 . . . . 1 . . . Robots Built . | . . . . . . . . . . . . . . . . . Authchips . | . . . . . . . . . . . . . . . . . Time . | . . . . . . . . . . . . . . . . . Total Robot Build Rating . | . . . . . . . . . . . . . . . . . Part Schematics Acquired 2 | . . . . . . . . . . . . . 2 . . . Parts Built . | . . . . . . . . . . . . . . . . . Authchips . | . . . . . . . . . . . . . . . . . Time 46 | . . . . . . . . . . . . . . . 46 . Total Part Build Rating . | . . . . . . . . . . . . . . . . . Part Studies Acquired 2 | . . . . . 1 . . . . . . . . 1 . . Parts Repaired 1 | . . . . 1 . . . . . . . . . . . . Time 38 | . . . . 38 . . . . . . . . . . . . Parts Recycled . | . . . . . . . . . . . . . . . . . Recycled Matter . | . . . . . . . . . . . . . . . . . Retrieved Matter 213 | . . . . . . . 213 . . . . . . . . . Retrieved Components 28 | . 1 . . 9 . . . . 2 . . 10 . 6 . . Parts Scanalyzed . | . . . . . . . . . . . . . . . . . Part Schematics Acquired . | . . . . . . . . . . . . . . . . . Parts Damaged . | . . . . . . . . . . . . . . . . . Bothacking | -11 -10 -10 -10 -8 -7 -7 -7 -5 -4 -4 -4 -3 -3 -2 -1 -1 ------------ Run | Yrd Mat Min Sub Mat Fac Sto Rec Fac Fac Arm Lab Res Tes Res Acc Com Used RIF Installer . | . . . . . . . . . . . . . . . . . Robots Hacked . | . . . . . . . . . . . . . . . . . Non-combat . | . . . . . . . . . . . . . . . . . Combat . | . . . . . . . . . . . . . . . . . Robot Hacks Applied . | . . . . . . . . . . . . . . . . . Relay Couplers Released . | . . . . . . . . . . . . . . . . . Fabnet Peak Effective % . | . . . . . . . . . . . . . . . . . Robots Rewired 4 | . . . . . . . . . . 4 . . . . . . Allies Hacked 2 | . . . . . . . . . . . . 2 . . . . Hacks Repelled . | . . . . . . . . . . . . . . . . . Allies | -11 -10 -10 -10 -8 -7 -7 -7 -5 -4 -4 -4 -3 -3 -2 -1 -1 -------- Run | Yrd Mat Min Sub Mat Fac Sto Rec Fac Fac Arm Lab Res Tes Res Acc Com Total Allies 29 | . . . . . . . 2 2 . 4 . 4 . . . 17 Largest Group 8 | . . . . . . . 2 2 1 4 2 5 . . . 8 Highest-Rated Group 365 | . . . . . . . 48 58 29 250 126 219 . . . 365 Highest-Rated Ally 82 | . . . . . . . 24 29 29 64 63 63 . . . 82 Total Orders . | . . . . . . . . . . . . . . . . . Ally Attacks 183 | . . . . . . . 4 13 11 . . 67 . . . 88 Total Damage 3822 | . . . . . . . 77 218 95 . . 1009 . . . 2423 Kills 25 | . . . . . . . . 1 . . . 15 . . . 9 Allies Corrupted 1 | . . . . . . . . . . . . . . . . 1 Allies Melted 1 | . . . . . . . . . . . . 1 . . . . X0-1V1 Amusement Gains 444 | . 12 30 10 40 . 46 15 20 . 70 . 10 89 . 70 32 Good Acts 114 | . . 5 2 9 . 1 10 13 7 9 . 12 4 6 20 16 Bad Acts 77 | . 1 3 1 11 2 4 3 1 6 9 . 17 3 1 7 8 Intel | -11 -10 -10 -10 -8 -7 -7 -7 -5 -4 -4 -4 -3 -3 -2 -1 -1 ------- Run | Yrd Mat Min Sub Mat Fac Sto Rec Fac Fac Arm Lab Res Tes Res Acc Com Active Infowar (turns) 1686 | . . . . . 139 . 337 . . . . . . . 1026 184 Sensors 830 | . . . . . 139 . . . . . . . . . 691 . Cloaking 519 | . . . . . . . . . . . . . . . 335 184 Jamming 337 | . . . . . . . 337 . . . . . . . . . Robot Analysis Total 1 | . . . . 1 . . . . . . . . . . . . Derelict Logs Recovered 1 | . . 1 . . . . . . . . . . . . . . Drone Launches . | . . . . . . . . . . . . . . . . . Drone Recoveries . | . . . . . . . . . . . . . . . . . Exploration | -11 -10 -10 -10 -8 -7 -7 -7 -5 -4 -4 -4 -3 -3 -2 -1 -1 ------------- Run | Yrd Mat Min Sub Mat Fac Sto Rec Fac Fac Arm Lab Res Tes Res Acc Com Turns Passed 18138 | 76 954 1277 589 2038 596 543 1924 1418 1246 1549 168 1757 658 1075 1748 522 Spaces Moved 10772 | 54 550 424 320 925 319 302 983 844 862 971 16 1268 368 778 1319 469 Core 267 | 6 . . . . . . . . . . . . . . . 261 Treads 3972 | . 120 424 282 460 101 . 5 . 482 491 . 200 368 778 215 46 Legs 4124 | 48 430 . . . 65 302 860 . . 480 16 994 . . 879 50 Wheels 1226 | . . . 38 465 153 . 113 383 . . . 74 . . . . Hover 12 | . . . . . . . 5 . . . . . . . 7 . Flight 1171 | . . . . . . . . 461 380 . . . . . 218 112 Fastest Speed 50 | 50 120 160 110 110 115 116 61 82 82 99 99 74 105 105 50 50 Average Speed 120 | 113 131 235 154 155 142 130 132 127 108 112 99 93 105 105 90 74 Slowest Speed 270 | 120 190 240 160 240 270 140 250 242 134 134 99 105 105 105 130 130 Overloaded Moves . | . . . . . . . . . . . . . . . . . Propulsion Burnouts . | . . . . . . . . . . . . . . . . . Robots Hopped 10 | . . . . . . . . 4 . . . . . . 4 2 Potential Cave-ins 3 | . . . . . . . . . . . . . . . 3 . Cave-ins Triggered 1 | . . . . . . . . . . . . . . . 1 . Exploration Rate (%) 41 | 3 87 97 29 75 9 48 97 22 23 40 6 27 44 25 46 25 Regions Visited 16 Branch Regions 8 Pre-discovered Areas . | . . . . . . . . . . . . . . . . . Known Exits Taken 6 | . . . 1 . 1 . . 1 1 . . 1 . . 1 . Unknown Exits Taken 10 | 1 1 1 . 1 . 1 1 . . 1 1 . 1 1 . . Scrap Searched 5 | . . 2 3 . . . . . . . . . . . . . Spaces Dug 132 | . . . . 13 4 3 1 11 5 4 . 12 8 27 41 3 Terrain Destroyed 867 | . . . . 59 23 13 14 33 34 43 . 49 41 75 469 14 Melee . | . . . . . . . . . . . . . . . . . Projectile 545 | . . . . 59 5 13 14 33 33 43 . 41 41 75 174 14 AOE 322 | . . . . . 18 . . . 1 . . 8 . . 295 . Terrain Rammed . | . . . . . . . . . . . . . . . . . Walls Destroyed . | . . . . . . . . . . . . . . . . . Machines Disabled . | . . . . . . . . . . . . . . . . . Actions | -11 -10 -10 -10 -8 -7 -7 -7 -5 -4 -4 -4 -3 -3 -2 -1 -1 --------- Run | Yrd Mat Min Sub Mat Fac Sto Rec Fac Fac Arm Lab Res Tes Res Acc Com Total 14545 | 67 694 632 372 1278 414 411 1585 1034 1072 1295 168 1672 591 968 1714 578 Wait 2089 | . 75 165 8 169 32 46 552 45 73 90 152 168 149 118 220 27 Move 10737 | 53 549 423 319 924 318 301 982 836 861 970 15 1267 367 777 1310 465 Hop 10 | . . . . . . . . 4 . . . . . . 4 2 Pick Up 118 | 8 7 1 7 16 9 11 6 6 10 11 . 11 5 3 7 . Fast Attach 89 | 4 4 2 4 14 8 5 3 5 5 11 . 7 5 3 4 5 Attach 57 | 2 . 3 2 7 3 . 1 3 4 3 . 5 5 3 7 9 Detach 10 | . . 1 . . 1 . 2 . 2 1 . 1 . . . 2 Swap 86 | . 6 2 3 7 9 5 . 7 5 5 . 19 2 7 8 1 Drop 147 | . 8 1 6 14 12 19 21 5 11 14 1 18 6 3 4 4 Fire 1093 | . 44 31 23 122 21 21 18 113 99 135 . 167 52 53 142 52 Melee . | . . . . . . . . . . . . . . . . . Ram 3 | . . . . . . . . 2 . . . . . . . 1 Kick 14 | . 1 . . . . 3 . . . 1 . 2 . . 7 . Crush 17 | . . 1 . 5 1 . . . 2 . . . . 1 1 6 Escape Stasis 12 | . . . . . . . . 8 . . . . . . . 4 Rewire 63 | . . 2 . . . . . . . 54 . 7 . . . . Trap . | . . . . . . . . . . . . . . . . . Miscellaneous . | . . . . . . . . . . . . . . . . . Route ------- -11/Scrapyard -10/Materials (discovered 3 exits: [*Mat x2] / [*Min]) -10/Mines (discovered 3 exits: [*Mat x2] / *Sub) -10/Subcaves (discovered 2 exits: *Mat x2) -8/Materials (discovered 2 exits: *Fac x2) -7/Factory (discovered 4 exits: *Sto x2 / Low x2) -7/Storage -7/Recycling -5/Factory (discovered 2 exits: *Fac x2) -4/Factory -4/Armory (discovered 2 exits: *Res / *Lab) -4/Lab -3/Research -3/Testing -2/Research -1/Access (discovered 2 exits: [*Sur] / *Com) -1/Command History --------- Turn | Location | Event 7 | -11/Scrapyard | Discovered new exit (range 16) 77 | -11/Scrapyard | Entered Materials 301 | -10/Materials | Discovered new exit (range 16) 312 | -10/Materials | Build established: Mutant 585 | -10/Materials | Discovered new exit (range 15) 631 | -10/Materials | Central database locked down 759 | -10/Materials | Discovered new exit (range 15) 818 | -10/Materials | Prayed at D.C.S.S. Altar Unit 827 | -10/Materials | X0-1V1 mutated your Propulsion slot to Weapon slot 1031 | -10/Materials | Entered Mines 1032 | -10/Mines | Assembled infested the area 1080 | -10/Mines | Learned Materials terminal intel 1383 | -10/Mines | Build established: Gunner 1422 | -10/Mines | Core integrity permanently improved by X0-1V1 (+200) 1514 | -10/Mines | X0-1V1 activates XOMVISION 1607 | -10/Mines | Discovered new exit (range 5) 2039 | -10/Mines | X0-1V1 sent hostile G-34 Mercenary (x3) 2102 | -10/Mines | X0-1V1 activates XOMVISION 2205 | -10/Mines | Discovered new exit (range 13) 2275 | -10/Mines | X0-1V1 mutated your Weapon slot to Propulsion slot 2298 | -10/Mines | Discovered new exit (range 8) 2308 | -10/Mines | Entered Subcaves 2309 | -10/Subcaves | Approached by a straggling Scientist 2356 | -10/Subcaves | Energy capacity permanently improved by X0-1V1 (+200; -100 max core) 2531 | -10/Subcaves | Visited 4L-MR0's lab 2545 | -10/Subcaves | Found Prototype Device 2566 | -10/Subcaves | Build established: Mutant 2595 | -10/Subcaves | Identified exit to Materials 2595 | -10/Subcaves | X0-1V1 revealed exit location to -8/Materials 2670 | -10/Subcaves | Ambushed by Subdwellers from Twisted Machinery 2852 | -10/Subcaves | Shifting Twisted Machinery released Sub. Power Source 2853 | -10/Subcaves | Shifting Twisted Machinery released Mak. Spear 2880 | -10/Subcaves | Discovered exit to Materials (range 5) 2897 | -10/Subcaves | Entered Materials 2897 | -8/Materials | Evolved 4 slots: Propulsion x1, Utility x3 2898 | -8/Materials | Loaded intel: 12 terminal locations 3024 | -8/Materials | Ranged accuracy permanently improved by X0-1V1 (+5%; -50 max core) 3264 | -8/Materials | X0-1V1 added 0b10 threat records associated with you (minor) 3270 | -8/Materials | Build established: Scavenger-Mutant 3297 | -8/Materials | Search patrols dispatched 3521 | -8/Materials | Repaired Hrd. Medium Armor Plating 3673 | -8/Materials | X0-1V1 redirected Transport squads to designated parking area 3688 | -8/Materials | X0-1V1 announced a LAN party 4092 | -8/Materials | X0-1V1 foreshadows a heat wave 4104 | -8/Materials | X0-1V1 enhanced Transport squad support 4289 | -8/Materials | Discovered new exit (range 16) 4338 | -8/Materials | Ambient heat levels rising (+10) 4538 | -8/Materials | Ambient heat levels rising (+10) 4562 | -8/Materials | Discovered new exit (range 12) 4563 | -8/Materials | Lost 3 parts (1n2w) 4618 | -8/Materials | System corruption reached 10% 4806 | -8/Materials | X0-1V1 mutated your Utility slot to Weapon slot 4823 | -8/Materials | Ambient heat levels falling (-10) 4935 | -8/Materials | Entered Factory 4935 | -7/Factory | Evolved 2 slots: Propulsion x1, Utility x1 5075 | -7/Factory | Identified Sfc. Transmogrifier 5228 | -7/Factory | Identified exit to Storage 5228 | -7/Factory | Identified exit to Lower Caves 5443 | -7/Factory | X0-1V1 sent hostile S-27 Virus (x4) 5531 | -7/Factory | Entered Storage 5576 | -7/Storage | System corruption reached 10% 5941 | -7/Storage | X0-1V1 sent someone to clean up after you 5954 | -7/Storage | Build established: Gunner 6070 | -7/Storage | Discovered new exit (range 3) 6074 | -7/Storage | Entered Recycling 6448 | -7/Recycling | Discovered new exit (range 15) 7059 | -7/Recycling | Entered Scraplab 7070 | -7/Recycling | Found Prototype Device 7070 | -7/Recycling | Identified Scrap Engine 7216 | -7/Recycling | X0-1V1 activates XOMVISION 7505 | -7/Recycling | X0-1V1 sent hostile H-55 Commando (x2) 7508 | -7/Recycling | X0-1V1 sent allied X-57 Shotgunner (x2) 7677 | -7/Recycling | Build established: Construct 7998 | -7/Recycling | Entered Factory 7998 | -5/Factory | Accompanied by 2 allies 7998 | -5/Factory | Evolved 4 slots: Power x1, Utility x2, Weapon x1 8298 | -5/Factory | Search patrols dispatched 8679 | -5/Factory | Destroyed 7 combat bots 8691 | -5/Factory | Garrison activated, responded to threat 8804 | -5/Factory | Garrison activated, responded to threat 8836 | -5/Factory | Identified exit to Factory 8836 | -5/Factory | X0-1V1 revealed exit location to -4/Factory 8891 | -5/Factory | X0-1V1 revealed exit location to -4/Factory 9059 | -5/Factory | Cargo convoy interrupted 9406 | -5/Factory | X0-1V1 sent allied G-50 Soldier (x2) 9416 | -5/Factory | Entered another Factory area 9416 | -4/Factory | Accompanied by 1 ally 9416 | -4/Factory | Evolved 2 slots: Propulsion x1, Utility x1 9417 | -4/Factory | Lost 3 parts (1p2u) 9447 | -4/Factory | X0-1V1 enhanced Transport squad support 9650 | -4/Factory | X0-1V1 activates XOMVISION 9724 | -4/Factory | Identified exit to Armory 9724 | -4/Factory | X0-1V1 revealed exit location to -4/Armory 9908 | -4/Factory | Destroyed 8 combat bots 10179 | -4/Factory | Found Prototype Hackware 10581 | -4/Factory | Destroyed 8 combat bots 10596 | -4/Factory | X0-1V1 redirected Transport squads to designated parking area 10630 | -4/Factory | X0-1V1 sent hostile H-77 Assassin (x3) 10662 | -4/Factory | Entered Armory 10663 | -4/Armory | Met VL-GR5, who suggested a friendly competition 10874 | -4/Armory | Lost the competition with VL-GR5 10969 | -4/Armory | Discovered new exit (range 3) 10982 | -4/Armory | VL-GR5 left a parting gift on exiting Armory 10987 | -4/Armory | Found Prototype Energy Cannon 11153 | -4/Armory | X0-1V1 sent you to a vault 11161 | -4/Armory | Found Prototype Device 11161 | -4/Armory | Identified Exp. Actuator Array 11181 | -4/Armory | Found Prototype Device 11181 | -4/Armory | Identified Adv. EM Shield 11299 | -4/Armory | X0-1V1 tapped a No Entrance sign 11303 | -4/Armory | Discovered new exit (range 4) 11376 | -4/Armory | Identified Exp. System Shield 11582 | -4/Armory | Identified Multinova Projection Cannon 11760 | -4/Armory | System corruption reached 10% 11765 | -4/Armory | P-70 Sage assimilated allied Archangel 7c 11912 | -4/Armory | First assault squad dispatched 12024 | -4/Armory | X0-1V1 added 0b10 threat records associated with you (minor) 12027 | -4/Armory | X0-1V1 destroyed Energy Cycler 12027 | -4/Armory | Energy Cycler disabled 12109 | -4/Armory | Destroyed 7 combat bots 12211 | -4/Armory | Entered Lab 12211 | -4/Lab | Accompanied by 2 allies 12252 | -4/Lab | Discovered new exit (range 9) 12264 | -4/Lab | Unable to decrypt terminal 12295 | -4/Lab | Build established: Scavenger-Construct 12379 | -4/Lab | Entered Research 12379 | -3/Research | Accompanied by 2 allies 12379 | -3/Research | Evolved 2 slots: Utility x2 12464 | -3/Research | X0-1V1 activates XOMVISION 12566 | -3/Research | X0-1V1 announced a LAN party 12864 | -3/Research | X0-1V1 vaporized surrounding terrain (radius 16) 12914 | -3/Research | Spotted B-86 Titan 12916 | -3/Research | X0-1V1 sent allied Fireman (x4) 12925 | -3/Research | Allies destroyed B-86 Titan 13245 | -3/Research | P-80 Master assimilated allied C0-HBO(i) 13257 | -3/Research | P-80 Master assimilated allied Archangel 7a 13263 | -3/Research | P-80 Master assimilated allied EA-MGY(i) 13300 | -3/Research | X0-1V1 activates XOMVISION 13362 | -3/Research | X0-1V1 sent you to a vault 13373 | -3/Research | Found Prototype Device 13373 | -3/Research | Identified Thermal Barrier 13377 | -3/Research | Spotted B-86 Titan 13377 | -3/Research | X0-1V1 sent you into danger 13379 | -3/Research | First assault squad dispatched 13384 | -3/Research | Destroyed B-86 Titan 13438 | -3/Research | Discovered new exit (range 13) 13458 | -3/Research | Found Prototype Device 13458 | -3/Research | Identified Exp. EM Shield 13508 | -3/Research | X0-1V1 sent you into danger 13518 | -3/Research | X0-1V1 sent hostile H-77 Assassin (x2) 13581 | -3/Research | X0-1V1 sent hostile Thug (x2) 13869 | -3/Research | X0-1V1 vaporized surrounding terrain (radius 21) 13892 | -3/Research | X0-1V1 redirected Transport squads to designated parking area 13899 | -3/Research | Found Prototype Processor 13899 | -3/Research | Identified Exp. Signal Interpreter 14131 | -3/Research | X0-1V1 added 0b10 threat records associated with you (considerable) 14134 | -3/Research | Identified exit to Testing 14136 | -3/Research | Entered Testing 14191 | -3/Testing | Weapon slot count temporarily expanded by X0-1V1 (+2) 14216 | -3/Testing | Lost 3 parts (2u1w) 14228 | -3/Testing | Scanned by Researcher 14416 | -3/Testing | Discovered new exit (range 16) 14432 | -3/Testing | System corruption reached 10% 14640 | -3/Testing | Found Prototype Launcher 14690 | -3/Testing | Found Prototype Hackware 14794 | -3/Testing | Entered Research 14794 | -2/Research | Evolved 2 slots: Utility x2 14899 | -2/Research | Identified System Mapper 15257 | -2/Research | X0-1V1 activates XOMVISION 15782 | -2/Research | Discovered new exit (range 21) 15869 | -2/Research | Entered Access 15869 | -1/Access | Evolved 2 slots: Power x1, Utility x1 16148 | -1/Access | Sensors blinded by X0-1V1 16462 | -1/Access | Fabricated Hvy. Shield Leg? 16486 | -1/Access | Build established: Scavenger-Tank 16487 | -1/Access | X0-1V1 enhanced Transport squad support 16504 | -1/Access | Garrison activated, responded to threat 16661 | -1/Access | Discovered new exit (range 6) 16794 | -1/Access | Spotted B-99 Colossus 16799 | -1/Access | Crushed by falling debris 16826 | -1/Access | Build established: Scavenger-Construct 16945 | -1/Access | X0-1V1 activates XOMVISION 17147 | -1/Access | X0-1V1 redirected Transport squads to designated parking area 17203 | -1/Access | Lost 3 parts (3u) 17210 | -1/Access | Found Quantum Capacitor 17219 | -1/Access | Destroyed 7 combat bots 17225 | -1/Access | High security lockdown imminent 17268 | -1/Access | Destroyed 12 combat bots 17271 | -1/Access | Identified Adv. Micro-nuke Launcher 17296 | -1/Access | Destroyed 11 combat bots 17305 | -1/Access | High security lockdown engaged 17360 | -1/Access | X0-1V1 activates XOMVISION 17410 | -1/Access | Identified exit to Command 17410 | -1/Access | X0-1V1 revealed exit location to -1/Command 17446 | -1/Access | Garrison activated, responded to threat 17489 | -1/Access | Lost 4 parts (3u1w) 17606 | -1/Access | Spotted B-99 Colossus 17607 | -1/Access | Spotted B-99 Colossus 17617 | -1/Access | Entered Command 17771 | -1/Command | High security lockdown imminent 17792 | -1/Command | X0-1V1 sent allied G-73 Enforcer (x4) 17851 | -1/Command | High security lockdown engaged 17920 | -1/Command | X0-1V1 turns hostiles against one another 17934 | -1/Command | Spotted Combat Programmer 17935 | -1/Command | Spotted Combat Programmer 17937 | -1/Command | Spotted M Guard 17938 | -1/Command | Spotted M Guard 17959 | -1/Command | System corruption reached 10% 17986 | -1/Command | System corruption reached 30% 18002 | -1/Command | X0-1V1 whisked you away to safety 18017 | -1/Command | Lost 16 parts (3p1n10u2w) 18028 | -1/Command | X0-1V1 mutated your Weapon slot to Power slot 18065 | -1/Command | Core integrity fell below 50% 18097 | -1/Command | X0-1V1 sent you to a vault 18109 | -1/Command | Spotted Investigator 18112 | -1/Command | X0-1V1 turns hostiles against one another 18122 | -1/Command | Spotted Alpha 7 18122 | -1/Command | Spotted Striker 18122 | -1/Command | Spotted Executioner 18122 | -1/Command | Spotted Executioner 18122 | -1/Command | Spotted Alpha 7 18122 | -1/Command | Spotted Striker 18122 | -1/Command | Spotted Executioner 18122 | -1/Command | Spotted Executioner 18123 | -1/Command | Spotted B-99 Colossus 18126 | -1/Command | Spotted B-99 Colossus 18132 | -1/Command | Core integrity fell below 20% 18139 | -1/Command | Destroyed by Executioner with Helical Railgun Last Messages --------------- 18135_ Penetrated by Slug. 18136_ 74QERVHQ PG8TF E 18136_ Critical hit (Destroy). 18136_ Treaded Siege-QT Exoskeleton destroyed. 18136_ Treaded Siege-QT Exoskeleton core remains intact and functional. 18137_ Penetrated by Slug. 18137_ Slug penetrates Executioner. 18137_ Penetrated by Slug. 18137_ Slug penetrates Executioner. 18137_ Penetrated by Slug. 18137_ Slug penetrates Wall. 18137_ Slammed into Executioner. 18138_ Executioner knocked back. 18138_ Slug penetrates Executioner. 18138_ Penetrated by Slug. 18138_ Slug penetrates Executioner. 18139_ Penetrated by Slug. 18139_ X0-1V1 chortles! Map ----- +----------------------------------------------------+ | ## #??????????????????????????????? | | +####+#####+## #??????????????????????????????? | | ?????# #??????????????????????????????? | | #??????# % ! #??????????????????????????????? | | #??????# #??????????????????????????????? | | #??????# #??????????????????????????????? | | ########/ #??????????????????????????????? | | "%"!%= #??????""??????????????????????? | | [[ #???? """??????????????????????? | | = +?? """"?????????????????????? | | ! % # "" ????????????????????? | | %= % + #?????????????????? | | = ## #?????????????????? | | "" "" #??? #?????????????????? | | """" """" #????? #?????????????????? | | """" """" ###############?????????????????? | | ""% % "" ?????????????????? | | ########????????????????????????? | | " % = #???????????????????????????????? | | ""%" #??????????????########?????????? | | """ "" #????????????? ????????? | | """" """" #??#########? #???????? | | """" " #### #%;K% # ?????????? | | "" %;; %g EEEBB "????????????????? | | %+ ^7 K BB "????????????????? | | + 7 @BBE "????????????????? | | %+ % ^%BB "????????????????? | | + ^ ^ "????????????????? | | ############"####^ ^ "????????????????? | | ?????????? ????### # # # ; ???????????????? | | ???????? ????????######### ?????????????? | | ?????????? ?????????????????? ???????????? | | ?????????????????????????????########;#??????????? | | ?????????????????????????????????????????????????? | | ?????????????????????????????????????????????????? | | ?????????????????????????????????????????????????? | | ?????????????????????????????????????????????????? | | ?????????????????????????????????????????????????? | | ?????????????????????????????????????????????????? | | ?????????????????????????????????????????????????? | | ?????????????????????????????????????????????????? | | ?????????????????????????????????????????????????? | | ?????????????????????????????????????????????????? | | ?????????????????????????????????????????????????? | | ?????????????????????????????????????????????????? | | ?????????????????????????????????????????????????? | | ?????????????????????????????????????????????????? | | ?????????????????????????????????????????????????? | | ?????????????????????????????????????????????????? | | ?????????????????????????????????????????????????? | +----------------------------------------------------+ Best States ------------- Heat Dissipation 206 Coolant Potential 100 Energy Generation 118 Energy Capacity 2675 Matter Stores 1000 Matter Capacity 1000 Sight Range 22 Robot Scan Range 16 Terrain Scan Density 10 Jamming Range 14 Cloak Strength 3 Additional Mass Support 9 Base Temperature (-) 200 Armor Coverage 600 Resistance: KI 35 Resistance: TH 50 Resistance: EM 50 Weapon Shielding 15 Point Defense Rating 240 Weapon Cycling 20 Phase Shifting 10 Evasion (%) 77 Targeting Accuracy 10 Recoil Reduction 5 Particle Charging 30 Kinecelleration 40 Offensive Hacking 20 Defensive Hacking 16 Item Schematics ----------------- Coolant Network | -3/Testing | Archive Exp. Energy Well | -3/Testing | Archive Robot Schematics ------------------ A-15 Conveyor | -5/Factory | Hacked Y-72 Warden | -3/Testing | Archive Fabricated ------------ Nothing Repaired ---------- Hrd. Medium Armor Plating | 27% | -8/Materials Studied --------- Hvy. Ion Cannon | -7/Factory | Hacked Micro-nuke Launcher | -2/Research | Hacked Alien Tech Used ----------------- None Achievements -------------- None Challenges ------------ Scavenger Game ------ Seed GunDirtyEdition Manual? 0 Play Time 03:33:36 Cumulative 491.7 hours Start 2026.07.11 @ 17:25:39 End 2026.07.12 @ 01:44:51 Sessions 3 Manual Loads 0 Difficulty Rogue Special Mode None Game No. 247 Rogue 247 Adventurer 0 Explorer 0 Win Type - Total 14 Types 9/0/2/0/0/0/0/1/0/2 Lore% 85 Gallery% 80 Achievement% 68 Wizard Run 0 Options --------- Layout 0 ASCII 0 Keyboard 0 Movement Mouse Keybinds 0 Fullscreen 1 Font 18/SmallcapsGlow Map View 76x50 Zoom Use 0% Tactical HUD 1 Map Filters NONE Filters NONE Steam 1 RUN: 688ca6b3-2fcf-473d-9f4e-baa296dc1795